Workbook

Sheet Feuil1
A1: NOM | C1: JANVIER | D1: FÉVRIER | E1: MARS | F1: AVRIL | G1: MAI | H1: JUIN | I1: TOTAL
A2: A | B2: BUDGET | C2: 1000 | D2: 1000 | E2: 1000 | F2: 1000 | G2: 1000 | H2: 1000 | I2: =((SUM(C4:H4))*1)*1 -> 1300
B3: REALISE | C3: 600 | D3: 1200 | E3: 1300 | F3: 1400 | G3: 0 | H3: 200
B4: PERF | C4: =C2-C3 -> 400 | D4: =D2-D3 -> -200 | E4: -300 | F4: -400 | G4: 1000 | H4: 800
A5: B | B5: BUDGET | C5: 1000 | D5: 1000 | E5: 1000 | F5: 1000 | G5: 1000 | H5: 1000 | I5: =((SUM(C7:H7))*1)*1 -> 3400
B6: REALISE | C6: 200 | D6: 0 | E6: 0 | F6: 1200 | G6: 0 | H6: 1200
B7: PERF | C7: =C5-C6 -> 800 | D7: =D5-D6 -> 1000 | E7: =E5-E6 -> 1000 | F7: =F5-F6 -> -200 | G7: =G5-G6 -> 1000 | H7: =H5-H6 -> -200
A8: C | B8: BUDGET | C8: 1000 | D8: 1000 | E8: 1000 | F8: 1000 | G8: 1000 | H8: 1000 | I8: =((SUM(C10:H10))*1)*1 -> -1100
B9: REALISE | C9: 1300 | D9: 1400 | E9: 1400 | F9: 2000 | G9: 1000 | H9: 0
B10: PERF | C10: =C8-C9 -> -300 | D10: =D8-D9 -> -400 | E10: =E8-E9 -> -400 | F10: -1000 | G10: =G8-G9 -> 0 | H10: =H8-H9 -> 1000
A11: D | B11: BUDGET | C11: 1000 | D11: 1000 | E11: 1000 | F11: 1000 | G11: 1000 | H11: 1000 | I11: =((SUM(C13:H13))*1)*1 -> -1600
B12: REALISE | C12: 2000 | D12: 2200 | E12: 1200 | F12: 2200 | G12: 0 | H12: 0
B13: PERF | C13: =C11-C12 -> -1000 | D13: =D11-D12 -> -1200 | E13: =E11-E12 -> -200 | F13: -1200 | G13: 1000 | H13: =H11-H12 -> 1000
A14: E | B14: BUDGET | C14: 1000 | D14: 1000 | E14: 1000 | F14: 1000 | G14: 1000 | H14: 1000 | I14: =((SUM(C16:H16))*1)*1 -> -5600
B15: REALISE | C15: 200 | D15: 200 | E15: 7000 | F15: 2000 | G15: 2000 | H15: 200
B16: PERF | C16: =C14-C15 -> 800 | D16: =D14-D15 -> 800 | E16: =E14-E15 -> -6000 | F16: =F14-F15 -> -1000 | G16: =G14-G15 -> -1000 | H16: =H14-H15 -> 800
A19: JE SOUHAITERAIS EN OUVRANT LE FICHIER QUE LES CHIFFRES EN ROUGE DE LA COLONNE I "CLIGNOTENT"
A20: MERCI

Sheet Feuil2

Sheet Feuil3
